fUST/lending_fUST_20250626
["ID","MTS","AMOUNT","RATE_DAILY","PERIOD"]
[367818253,1750935067631,-460.0,0.00019726,2]
[367818255,1750935067641,-151.0,0.00019726,2]
[367818257,1750935067652,-1511.08,0.00019726,2]
[367818259,1750935067663,-151.0,0.00019726,2]
[367818261,1750935067672,-502.37,0.00019726,2]
[367818263,1750935067682,-688.89,0.00019726,2]
[367818265,1750935067691,-1077.29,0.00019726,2]
[367818267,1750935067701,-582.41,0.00019726,2]
[367818269,1750935067711,-1977.63,0.00019726,2]
[367818271,1750935067720,-460.0,0.00019726,2]
[367818273,1750935067730,-1625.98,0.00019726,2]
[367818275,1750935067740,-353.29176545,0.00019726,2]
[367818277,1750935067750,-574.56,0.00019726,2]
[367818279,1750935067760,-460.0,0.00019726,2]
[367818281,1750935067769,-460.0,0.00019726,2]
[367818283,1750935067779,-538.9,0.00019726,2]
[367818285,1750935067789,-460.0,0.00019726,2]
[367818287,1750935067799,-825.76,0.00019726,2]
[367818289,1750935067808,-460.0,0.00019726,2]
[367818291,1750935067818,-460.0,0.00019726,2]
[367818293,1750935067831,-460.0,0.00019726,2]
[367818295,1750935067841,-828.76,0.00019726,2]
[367818297,1750935067851,-460.0,0.00019726,2]
[367818299,1750935067860,-1259.49,0.00019726,2]
[367818301,1750935067869,-460.0,0.00019726,2]
[367818303,1750935067880,-2002.73,0.00019726,2]
[367818305,1750935067890,-460.0,0.00019726,2]
[367818307,1750935067900,-1542.12,0.00019726,2]
[367818309,1750935067910,-1156.67,0.00019726,2]
[367818311,1750935067920,-324.08914,0.00019726,2]
[367818314,1750935067930,-465.29191642,0.00019737,2]
[367818316,1750935067940,-2500.0,0.0001979,2]
[367818318,1750935067949,-482.50771733,0.00019792,2]
[367818320,1750935067959,-151.0,0.000198,2]
[367818322,1750935067968,-600.56496766,0.00019832,2]
[367818324,1750935067977,-649.98537428,0.00019832,2]
[367818326,1750935067987,-1000.0,0.00019832,2]
[367818328,1750935067998,-1000.0,0.00019832,2]
[367818330,1750935068007,-500.0,0.00019832,2]
[367818343,1750935068121,-653.17919225,0.00019832,2]
[367818345,1750935068132,-500.43078147,0.00019832,2]
[367818347,1750935068142,-1000.0,0.00019832,2]
[367818349,1750935068151,-1000.0,0.00019832,2]
[367818351,1750935068161,-500.35372595,0.00019843,2]
[367818353,1750935068170,-500.36050287,0.00019847,2]
[367818355,1750935068179,-518.87384147,0.00019902,2]
[367818357,1750935068188,-2405.49793726,0.00019934,2]
[367818359,1750935068198,-538.07217361,0.00019957,2]
[367818361,1750935068207,-6544.25534237,0.00019983,2]
[367818363,1750935068216,-33606.01203106,0.0002,2]
[367818365,1750935068225,-460.0,0.0002,2]
[367818366,1750935068234,-621.64,0.0002,2]
[367818369,1750935068244,-501.31,0.0002,2]
[367818370,1750935068254,-460.0,0.0002,2]
[367818372,1750935068263,-1118.1,0.0002,2]
[367818374,1750935068272,-651.46,0.0002,2]
[367818376,1750935068281,-460.0,0.0002,2]
[367818378,1750935068291,-460.0,0.0002,2]
[367818380,1750935068300,-460.0,0.0002,2]
[367818382,1750935068309,-151.0,0.0002,2]
[367818384,1750935068318,-460.0,0.0002,2]
[367818386,1750935068328,-460.0,0.0002,2]
[367818388,1750935068337,-151.0,0.0002,2]
[367818390,1750935068347,-460.0,0.0002,2]
[367818392,1750935068356,-460.0,0.0002,2]
[367818394,1750935068366,-151.0,0.0002,2]
[367818396,1750935068375,-460.0,0.0002,2]
[367818398,1750935068384,-328.10923955,0.0002,2]
[367818400,1750935068394,-625.07,0.0002,2]
[367818402,1750935068402,-460.0,0.0002,2]
[367818404,1750935068412,-460.0,0.0002,2]
[367818406,1750935068422,-460.0,0.0002,2]
[367818408,1750935068432,-460.0,0.0002,2]
[367818411,1750935068442,-460.0,0.0002,2]
[367818413,1750935068453,-460.0,0.0002,2]
[367818415,1750935068462,-484.22,0.0002,2]
[367818417,1750935068472,-2275.04,0.0002,2]
[367818418,1750935068482,-460.0,0.0002,2]
[367818421,1750935068493,-460.0,0.0002,2]
[367818422,1750935068502,-1636.78,0.0002,2]
[367818425,1750935068512,-460.0,0.0002,2]
[367818426,1750935068521,-460.0,0.0002,2]
[367818428,1750935068531,-597.31,0.0002,2]
[367818430,1750935068540,-468.95,0.0002,2]
[367818432,1750935068550,-460.0,0.0002,2]
[367818434,1750935068559,-2327.62,0.0002,2]
[367818436,1750935068569,-517.49,0.0002,2]
[367818438,1750935068578,-460.0,0.0002,2]
[367818440,1750935068587,-3709.84,0.0002,2]
[367818442,1750935068600,-490.87,0.0002,2]
[367818444,1750935068609,-618.59,0.0002,2]
[367818446,1750935068619,-734.47,0.0002,2]
[367818447,1750935068628,-4220.73,0.0002,2]
[367818448,1750935068637,-566.79,0.0002,2]
[367818449,1750935068646,-2226.78,0.0002,2]
[367818450,1750935068656,-518.08,0.0002,2]
[367818451,1750935068665,-647.15,0.0002,2]
[367818452,1750935068675,-832.77,0.0002,2]
[367818453,1750935068683,-3294.22,0.0002,2]
[367818454,1750935068693,-460.0,0.0002,2]
[367818455,1750935068703,-1572.37,0.0002,2]
[367818456,1750935068713,-984.53,0.0002,2]
[367818457,1750935068724,-1306.82,0.0002,2]
[367818458,1750935068733,-460.0,0.0002,2]
[367818459,1750935068742,-460.0,0.0002,2]
[367818460,1750935068752,-460.0,0.0002,2]
[367818461,1750935068761,-828.69,0.0002,2]
[367818462,1750935068771,-576.8,0.0002,2]
[367818463,1750935068780,-460.0,0.0002,2]
[367818465,1750935068789,-542.24,0.0002,2]
[367818467,1750935068799,-1511.1,0.0002,2]
[367818469,1750935068808,-1812.24,0.0002,2]
[367818471,1750935068818,-460.0,0.0002,2]
[367818473,1750935068831,-460.0,0.0002,2]
[367818475,1750935068841,-582.33,0.0002,2]
[367818477,1750935068851,-460.0,0.0002,2]
[367818479,1750935068861,-1511.08,0.0002,2]
[367818481,1750935068870,-502.37,0.0002,2]
[367818483,1750935068882,-688.89,0.0002,2]
[367818485,1750935068891,-1077.29,0.0002,2]
[367818487,1750935068901,-582.41,0.0002,2]
[367818489,1750935068911,-1977.63,0.0002,2]
[367818491,1750935068920,-460.0,0.0002,2]
[367818493,1750935068930,-1625.98,0.0002,2]
[367818495,1750935068939,-574.56,0.0002,2]
[367818497,1750935068949,-460.0,0.0002,2]
[367818499,1750935068959,-460.0,0.0002,2]
[367818501,1750935068968,-538.9,0.0002,2]
[367818503,1750935068978,-460.0,0.0002,2]
[367818505,1750935068988,-825.76,0.0002,2]
[367818507,1750935068998,-460.0,0.0002,2]
[367818509,1750935069007,-460.0,0.0002,2]
[367818511,1750935069018,-460.0,0.0002,2]
[367818513,1750935069028,-828.76,0.0002,2]
[367818515,1750935069037,-460.0,0.0002,2]
[367818517,1750935069047,-1259.49,0.0002,2]
[367818519,1750935069057,-460.0,0.0002,2]
[367818521,1750935069066,-2002.73,0.0002,2]
[367818523,1750935069076,-460.0,0.0002,2]
[367818525,1750935069086,-1542.12,0.0002,2]
[367818527,1750935069095,-1156.67,0.0002,2]
[367818529,1750935069105,-5000.0,0.0002001,2]
[367818531,1750935069114,-25000.0,0.0002001,2]
[367818533,1750935069124,-152.059841,0.0002001,2]
[367818535,1750935069134,-151.0,0.0002001,2]
[367818537,1750935069144,-151.0,0.0002001,2]
[367818539,1750935069155,-151.0,0.0002001,2]
[367818541,1750935069164,-151.0,0.0002001,2]
[367818543,1750935069174,-165.724098,0.0002001,2]
[367818545,1750935069183,-185.0,0.00020075,2]
[367818547,1750935069193,-153.0,0.0002011,2]
[367818549,1750935069202,-2405.49793726,0.0002021,2]
[367818551,1750935069211,-185.0,0.00020235,2]
[367818553,1750935069221,-250.0,0.00020254,2]
[367818555,1750935069231,-621.64,0.00020273,2]
[367818557,1750935069240,-501.31,0.00020273,2]
[367818559,1750935069250,-583.29,0.00020273,2]
[367818561,1750935069259,-1118.1,0.00020273,2]
[367818563,1750935069268,-651.46,0.00020273,2]
[367818565,1750935069278,-460.0,0.00020273,2]
[367818566,1750935069286,-460.0,0.00020273,2]
[367818568,1750935069295,-460.0,0.00020273,2]
[367818570,1750935069305,-151.0,0.00020273,2]
[367818572,1750935069315,-460.0,0.00020273,2]
[367818574,1750935069324,-460.0,0.00020273,2]
[367818584,1750935069409,-460.0,0.00020273,2]
[367818586,1750935069419,-460.0,0.00020273,2]
[367818588,1750935069428,-151.0,0.00020273,2]
[367818590,1750935069437,-625.07,0.00020273,2]
[367818592,1750935069447,-151.0,0.00020273,2]
[367818594,1750935069456,-460.0,0.00020273,2]
[367818596,1750935069465,-460.0,0.00020273,2]
[367818599,1750935069475,-460.0,0.00020273,2]
[367818600,1750935069484,-460.0,0.00020273,2]
[367818602,1750935069493,-460.0,0.00020273,2]
[367818604,1750935069503,-460.0,0.00020273,2]
[367818607,1750935069512,-484.22,0.00020273,2]
[367818609,1750935069524,-2275.04,0.00020273,2]
[367818611,1750935069534,-599.63577361,0.00020273,2]
[367818613,1750935069543,-460.0,0.00020273,2]
[367818615,1750935069553,-1636.78,0.00020273,2]
[367818617,1750935069563,-460.0,0.00020273,2]
[367818619,1750935069572,-460.0,0.00020273,2]
[367818621,1750935069582,-597.31,0.00020273,2]
[367818623,1750935069591,-468.95,0.00020273,2]
[367818625,1750935069601,-460.0,0.00020273,2]
[367818627,1750935069611,-2327.62,0.00020273,2]
[367818629,1750935069621,-517.49,0.00020273,2]
[367818631,1750935069630,-460.0,0.00020273,2]
[367818633,1750935069640,-3709.84,0.00020273,2]
[367818635,1750935069649,-618.59,0.00020273,2]
[367818637,1750935069658,-490.87,0.00020273,2]
[367818639,1750935069667,-734.47,0.00020273,2]
[367818641,1750935069676,-4220.73,0.00020273,2]
[367818643,1750935069685,-566.79,0.00020273,2]
[367818645,1750935069695,-2226.78,0.00020273,2]
[367818647,1750935069704,-518.08,0.00020273,2]
[367818649,1750935069713,-647.15,0.00020273,2]
[367818651,1750935069723,-832.77,0.00020273,2]
[367818653,1750935069732,-3294.22,0.00020273,2]
[367818655,1750935069742,-460.0,0.00020273,2]
[367818657,1750935069751,-1572.37,0.00020273,2]
[367818659,1750935069760,-984.53,0.00020273,2]
[367818661,1750935069770,-1306.82,0.00020273,2]
[367818663,1750935069779,-460.0,0.00020273,2]
[367818665,1750935069788,-460.0,0.00020273,2]
[367818667,1750935069798,-371.62993064,0.00020273,2]
[367818669,1750935069807,-828.69,0.00020273,2]
[367818671,1750935069817,-576.8,0.00020273,2]
[367818673,1750935069828,-460.0,0.00020273,2]
[367818675,1750935069838,-542.24,0.00020273,2]
[367818677,1750935069848,-1812.24,0.00020273,2]
[367818679,1750935069857,-1511.1,0.00020273,2]
[367818681,1750935069867,-460.0,0.00020273,2]
[367818683,1750935069876,-460.0,0.00020273,2]
[367818685,1750935069886,-582.33,0.00020273,2]
[367818687,1750935069896,-460.0,0.00020273,2]
[367818689,1750935069906,-1511.08,0.00020273,2]
[367818691,1750935069915,-502.37,0.00020273,2]
[367818693,1750935069924,-688.89,0.00020273,2]
[367818695,1750935069933,-1077.29,0.00020273,2]
[367818697,1750935069943,-582.41,0.00020273,2]
[367818699,1750935069952,-1977.63,0.00020273,2]
[367818701,1750935069961,-460.0,0.00020273,2]
[367818704,1750935069984,-1625.98,0.00020273,2]
[367818707,1750935070001,-574.56,0.00020273,2]
[367818710,1750935070021,-460.0,0.00020273,2]
[367818713,1750935070041,-460.0,0.00020273,2]
[367818716,1750935070061,-538.9,0.00020273,2]
[367818719,1750935070078,-382.28871113,0.00020273,2]
[367818722,1750935070096,-825.76,0.00020273,2]
[367818725,1750935070111,-460.0,0.00020273,2]
[367818728,1750935070128,-460.0,0.00020273,2]
[367818731,1750935070148,-460.0,0.00020273,2]
[367818734,1750935070166,-828.76,0.00020273,2]
[367818736,1750935070180,-460.0,0.00020273,2]
[367818739,1750935070199,-1259.49,0.00020273,2]
[367818742,1750935070214,-525.89611994,0.00020273,2]
[367818745,1750935070230,-2002.73,0.00020273,2]
[367818747,1750935070245,-399.58324118,0.00020273,2]
[367818750,1750935070259,-1542.12,0.00020273,2]
[367818752,1750935070274,-1156.67,0.00020273,2]
[367818755,1750935070288,-1057.77139467,0.00020337,2]
[367818758,1750935070303,-1500.0,0.0002038,2]
[367818760,1750935070318,-1500.0,0.0002038,2]
[367818763,1750935070331,-1500.0,0.0002038,2]
[367818765,1750935070345,-1500.0,0.0002038,2]
[367818768,1750935070360,-1105.244781,0.00020404,4]
[367818770,1750935070374,-2405.49793726,0.00020486,3]
[367818773,1750935070388,-366.0585355,0.00020492,2]
[367818775,1750935070402,-732.0670792,0.00020492,2]
[367818778,1750935070417,-370.2578469,0.00020506,2]
[367818780,1750935070431,-168.0,0.00020541,2]
[367818783,1750935070445,-500.0,0.00020547,14]
[367818785,1750935070459,-621.64,0.00020547,2]
[367818788,1750935070473,-501.31,0.00020547,2]
[367818790,1750935070486,-1118.1,0.00020547,2]
[367818793,1750935070502,-651.46,0.00020547,2]
[367818795,1750935070516,-460.0,0.00020547,2]
[367818798,1750935070530,-460.0,0.00020547,2]
[367818800,1750935070544,-467.18,0.00020547,2]
[367818803,1750935070558,-460.0,0.00020547,2]
[367818805,1750935070572,-460.0,0.00020547,2]
[367818808,1750935070587,-460.0,0.00020547,2]
[367818811,1750935070603,-151.0,0.00020547,2]
[367818813,1750935070617,-151.0,0.00020547,2]
[367818816,1750935070631,-625.07,0.00020547,2]
[367818818,1750935070645,-151.0,0.00020547,2]
[367818821,1750935070659,-163.090781,0.00020547,2]
[367818823,1750935070673,-460.0,0.00020547,2]
[367818826,1750935070687,-460.0,0.00020547,2]
[367818829,1750935070702,-460.0,0.00020547,2]
[367818831,1750935070716,-460.0,0.00020547,2]
[367818834,1750935070732,-460.0,0.00020547,2]
[367818837,1750935070747,-460.0,0.00020547,2]
[367818839,1750935070762,-484.22,0.00020547,2]
[367818842,1750935070776,-2275.04,0.00020547,2]
[367818844,1750935070791,-460.0,0.00020547,2]
[367818847,1750935070806,-1636.78,0.00020547,2]
[367818850,1750935070820,-460.0,0.00020547,2]
[367818852,1750935070838,-460.0,0.00020547,2]
[367818866,1750935070957,-597.31,0.00020547,2]
[367818868,1750935070969,-468.95,0.00020547,2]
[367818870,1750935070979,-460.0,0.00020547,2]
[367818872,1750935070989,-2327.62,0.00020547,2]
[367818874,1750935070999,-517.49,0.00020547,2]
[367818876,1750935071008,-460.0,0.00020547,2]
[367818878,1750935071018,-3709.84,0.00020547,2]
[367818880,1750935071027,-618.59,0.00020547,2]
[367818882,1750935071037,-490.87,0.00020547,2]
[367818884,1750935071046,-734.47,0.00020547,2]
[367818886,1750935071055,-4220.73,0.00020547,2]
[367818888,1750935071065,-566.79,0.00020547,2]
[367818890,1750935071074,-2226.78,0.00020547,2]
[367818892,1750935071084,-518.08,0.00020547,2]
[367818894,1750935071093,-647.15,0.00020547,2]
[367818897,1750935071103,-832.77,0.00020547,2]
[367818899,1750935071113,-3294.22,0.00020547,2]
[367818901,1750935071122,-460.0,0.00020547,2]
[367818903,1750935071131,-1572.37,0.00020547,2]
[367818905,1750935071140,-984.53,0.00020547,2]
[367818907,1750935071150,-1306.82,0.00020547,2]
[367818909,1750935071159,-460.0,0.00020547,2]
[367818911,1750935071168,-460.0,0.00020547,2]
[367818913,1750935071178,-828.69,0.00020547,2]
[367818914,1750935071188,-576.8,0.00020547,2]
[367818917,1750935071198,-460.0,0.00020547,2]
[367818919,1750935071207,-542.24,0.00020547,2]
[367818921,1750935071216,-1812.24,0.00020547,2]
[367818923,1750935071225,-1511.1,0.00020547,2]
[367818925,1750935071235,-460.0,0.00020547,2]
[367818927,1750935071245,-460.0,0.00020547,2]
[367818929,1750935071254,-582.33,0.00020547,2]
[367818931,1750935071264,-460.0,0.00020547,2]
[367818933,1750935071274,-151.0,0.00020547,2]
[367818935,1750935071283,-1511.08,0.00020547,2]
[367818937,1750935071292,-151.0,0.00020547,2]
[367818939,1750935071301,-502.37,0.00020547,2]
[367818941,1750935071310,-688.89,0.00020547,2]
[367818943,1750935071319,-1077.29,0.00020547,2]
[367818945,1750935071328,-582.41,0.00020547,2]
[367818946,1750935071338,-1977.63,0.00020547,2]
[367818948,1750935071347,-460.0,0.00020547,2]
[367818950,1750935071356,-1625.98,0.00020547,2]
[367818952,1750935071366,-574.56,0.00020547,2]
[367818954,1750935071375,-460.0,0.00020547,2]
[367818956,1750935071385,-460.0,0.00020547,2]
[367818958,1750935071394,-538.9,0.00020547,2]
[367818960,1750935071404,-825.76,0.00020547,2]
[367818962,1750935071413,-460.0,0.00020547,2]
[367818964,1750935071422,-460.0,0.00020547,2]
[367818966,1750935071432,-460.0,0.00020547,2]
[367818968,1750935071441,-828.76,0.00020547,2]
[367818970,1750935071451,-460.0,0.00020547,2]
[367818972,1750935071461,-1259.49,0.00020547,2]
[367818974,1750935071471,-2002.73,0.00020547,2]
[367818976,1750935071480,-1542.12,0.00020547,2]
[367818978,1750935071489,-324.08914,0.00020547,2]
[367818980,1750935071499,-1156.67,0.00020547,2]
[367818982,1750935071508,-5000.0,0.00020558,2]
[367818984,1750935071518,-324.70928451,0.00020581,2]
[367818986,1750935071527,-3808.27,0.000206,2]
[367818988,1750935071539,-6544.25534237,0.00020603,2]
[367818990,1750935071549,-169.97704006,0.00020647,2]
[367818992,1750935071558,-185.0,0.00020761,2]
[367818994,1750935071568,-2405.49793726,0.00020762,3]
[367818996,1750935071577,-168.0,0.00020769,2]
[367818998,1750935071587,-937.20087004,0.00020782,2]
[367819000,1750935071596,-392.49180901,0.00020821,2]
[367819002,1750935071606,-621.64,0.00020821,2]
[367819005,1750935071615,-501.31,0.00020821,2]
[367819006,1750935071625,-1118.1,0.00020821,2]
[367819009,1750935071635,-651.46,0.00020821,2]
[367819010,1750935071644,-460.0,0.00020821,2]
[367819012,1750935071653,-460.0,0.00020821,2]
[367819013,1750935071662,-460.0,0.00020821,2]
[367819014,1750935071672,-460.0,0.00020821,2]
[367819015,1750935071681,-460.0,0.00020821,2]
[367819016,1750935071691,-625.07,0.00020821,2]
[367819017,1750935071700,-475.92934072,0.00020821,2]
[367819018,1750935071709,-460.0,0.00020821,2]
[367819019,1750935071718,-460.0,0.00020821,2]
[367819020,1750935071727,-460.0,0.00020821,2]
[367819021,1750935071737,-454.48104822,0.00020821,2]
[367819022,1750935071747,-460.0,0.00020821,2]
[367819023,1750935071755,-484.22,0.00020821,2]
[367819024,1750935071765,-2275.04,0.00020821,2]
[367819025,1750935071774,-460.0,0.00020821,2]
[367819026,1750935071783,-1636.78,0.00020821,2]
[367819027,1750935071793,-460.0,0.00020821,2]
[367819029,1750935071802,-460.0,0.00020821,2]
[367819030,1750935071812,-597.31,0.00020821,2]
[367819032,1750935071821,-468.95,0.00020821,2]
[367819034,1750935071835,-460.0,0.00020821,2]
[367819036,1750935071845,-2327.62,0.00020821,2]
[367819038,1750935071855,-517.49,0.00020821,2]
[367819041,1750935071865,-460.0,0.00020821,2]
[367819043,1750935071875,-3709.84,0.00020821,2]
[367819045,1750935071884,-618.59,0.00020821,2]
[367819047,1750935071894,-490.87,0.00020821,2]
[367819049,1750935071904,-734.47,0.00020821,2]
[367819050,1750935071914,-4220.73,0.00020821,2]
[367819053,1750935071924,-566.79,0.00020821,2]
[367819054,1750935071933,-2226.78,0.00020821,2]
[367819056,1750935071943,-518.08,0.00020821,2]
[367819058,1750935071952,-647.15,0.00020821,2]
[367819061,1750935071963,-832.77,0.00020821,2]
[367819063,1750935071973,-3294.22,0.00020821,2]
[367819065,1750935071983,-460.0,0.00020821,2]
[367819067,1750935071992,-1572.37,0.00020821,2]
[367819069,1750935072001,-984.53,0.00020821,2]
[367819071,1750935072010,-1306.82,0.00020821,2]
[367819073,1750935072020,-460.0,0.00020821,2]
[367819075,1750935072030,-460.0,0.00020821,2]
[367819077,1750935072039,-828.69,0.00020821,2]
[367819079,1750935072049,-576.8,0.00020821,2]
[367819081,1750935072058,-460.0,0.00020821,2]
[367819083,1750935072067,-542.24,0.00020821,2]
[367819085,1750935072077,-1812.24,0.00020821,2]
[367819087,1750935072087,-1511.1,0.00020821,2]
[367819089,1750935072096,-460.0,0.00020821,2]
[367819091,1750935072105,-460.0,0.00020821,2]
[367819093,1750935072115,-582.33,0.00020821,2]
[367819095,1750935072124,-460.0,0.00020821,2]
[367819097,1750935072134,-1511.08,0.00020821,2]
[367819099,1750935072143,-502.37,0.00020821,2]
[367819101,1750935072153,-688.89,0.00020821,2]
[367819103,1750935072162,-1077.29,0.00020821,2]
[367819105,1750935072171,-582.41,0.00020821,2]
[367819106,1750935072180,-1977.63,0.00020821,2]
[367819116,1750935072262,-460.0,0.00020821,2]
[367819118,1750935072272,-1625.98,0.00020821,2]
[367819120,1750935072281,-574.56,0.00020821,2]
[367819122,1750935072290,-460.0,0.00020821,2]
[367819124,1750935072300,-460.0,0.00020821,2]
[367819126,1750935072309,-538.9,0.00020821,2]
[367819128,1750935072319,-825.76,0.00020821,2]
[367819130,1750935072328,-460.0,0.00020821,2]
[367819132,1750935072337,-460.0,0.00020821,2]
[367819134,1750935072347,-460.0,0.00020821,2]
[367819136,1750935072356,-828.76,0.00020821,2]
[367819138,1750935072365,-571.24543167,0.00020821,2]
[367819140,1750935072374,-1259.49,0.00020821,2]
[367819142,1750935072384,-2002.73,0.00020821,2]
[367819144,1750935072393,-1542.12,0.00020821,2]
[367819146,1750935072403,-1156.67,0.00020821,2]
[367819148,1750935072412,-214.33134213,0.00020822,3]
[367819150,1750935072421,-215.0738,0.00020831,2]
[367819152,1750935072430,-168.0,0.00020886,2]
[367819154,1750935072439,-11175.271891,0.00020894,2]
[367819156,1750935072448,-151.0,0.00020894,2]
[367819158,1750935072457,-226.403081,0.00020894,2]
[367819160,1750935072467,-226.403081,0.00020894,2]
[367819162,1750935072476,-153.0,0.00020904,2]
[367819164,1750935072485,-511.48,0.0002092,15]
[367819166,1750935072495,-2000.0,0.00020928,2]
[367819168,1750935072504,-2000.0,0.00020928,2]
[367819170,1750935072513,-2000.0,0.00020928,2]
[367819172,1750935072522,-91.88909261,0.00020928,2]
[367819192,1750935072708,-460.0,0.00016712,2]
[367819194,1750935072718,-207.1387,0.00017534,2]
[367819220,1750935072982,-440.0,0.00016438,2]
[367819223,1750935072995,-20.0,0.00016438,2]
[367819225,1750935073004,-460.0,0.00016438,2]
[367819227,1750935073013,-460.0,0.00016438,2]
[367819229,1750935073023,-500.0,0.00016708,2]
[367819231,1750935073034,-496.18434817,0.00016708,2]
[367819257,1750935073279,-460.0,0.00016438,2]
[367819259,1750935073289,-3.81565183,0.00016708,2]
[367819261,1750935073298,-120.95108654,0.00016712,2]
[367819263,1750935073310,-339.04891346,0.00016712,2]
[367819265,1750935073319,-460.0,0.00016712,2]
[367819267,1750935073328,-78.6668905,0.00016712,2]
[367819270,1750935073344,-460.0,0.00016438,2]
[367819272,1750935073353,-381.3331095,0.00016712,2]
[367819274,1750935073363,-460.0,0.00016986,2]
[367819276,1750935073372,-460.0,0.00016986,2]
[367819278,1750935073381,-460.0,0.00016986,2]
[367819280,1750935073390,-460.0,0.00016986,2]
[367819282,1750935073400,-460.0,0.0001726,2]
[367819284,1750935073410,-460.0,0.0001726,2]
[367819286,1750935073419,-460.0,0.0001726,2]
[367819288,1750935073429,-460.0,0.0001726,2]
[367819290,1750935073439,-252.8613,0.00017534,2]
[367819292,1750935073448,-460.0,0.00017534,2]
[367819294,1750935073458,-460.0,0.00017534,2]
[367819296,1750935073468,-460.0,0.00017534,2]
[367819298,1750935073477,-460.0,0.00017534,2]
[367819300,1750935073488,-460.0,0.00017808,2]
[367819303,1750935073498,-460.0,0.00017808,2]
[367819305,1750935073507,-460.0,0.00017808,2]
[367819307,1750935073516,-460.0,0.00017808,2]
[367819309,1750935073526,-357.35,0.00017808,2]
[367819311,1750935073535,-460.0,0.00018082,2]
[367819313,1750935073545,-460.0,0.00018082,2]
[367819315,1750935073554,-460.0,0.00018082,2]
[367819317,1750935073563,-447.8459424,0.00018082,2]
[367819319,1750935073573,-460.0,0.00018356,2]
[367819321,1750935073582,-324.08914,0.00018356,2]
[367819323,1750935073592,-460.0,0.00018356,2]
[367819325,1750935073601,-460.0,0.00018356,2]
[367819327,1750935073610,-460.0,0.0001863,2]
[367819329,1750935073618,-460.0,0.0001863,2]
[367819331,1750935073628,-460.0,0.0001863,2]
[367819333,1750935073638,-460.0,0.00018904,2]
[367819335,1750935073647,-460.0,0.00018904,2]
[367819337,1750935073655,-302.76848937,0.00018904,2]
[367819339,1750935073665,-460.0,0.00019178,2]
[367819341,1750935073673,-324.08914,0.00019178,2]
[367819343,1750935073683,-460.0,0.00019178,2]
[367819345,1750935073693,-460.0,0.00019452,2]
[367819347,1750935073702,-460.0,0.00019452,2]
[367819349,1750935073712,-460.0,0.00019726,2]
[367819351,1750935073721,-324.08914,0.00019726,2]
[367819353,1750935073730,-460.0,0.00019726,2]
[367819355,1750935073739,-460.0,0.0002,2]
[367819357,1750935073748,-460.0,0.0002,2]
[367819359,1750935073758,-460.0,0.00020273,2]
[367819361,1750935073766,-460.0,0.00020273,2]
[367819363,1750935073776,-586.96296881,0.00020547,2]